[Event "Titled Tuesday Blitz March 07 Early 2023"]
[White "Mikhailovsky, Vladimir"]
[Black "Steinberg, Nitzan"]
[WhiteFideId "34105414"]
[BlackFideId "2801795"]
[WhiteElo "2293"]
[BlackElo "2486"]
[Result "1/2-1/2"]
[Round "08"]
[TimeControl "180+2"]
[Date "2023.03.07"]
[WhiteClock "0:00:18"]
[BlackClock "0:00:06"]

1. e4 {[%clk 0:02:58]}  c5 {[%clk 0:03:00]} 2. d4 {[%clk 0:02:52]}  cxd4 {[%clk 0:03:00]} 3. c3 {[%clk 0:02:53]}  d3 {[%clk 0:03:00]} 4. Nf3 {[%clk 0:02:53]}  Nc6 {[%clk 0:03:01]} 5. Bxd3 {[%clk 0:02:54]}  g6 {[%clk 0:03:01]} 6. O-O {[%clk 0:02:54]}  Bg7 {[%clk 0:03:02]} 7. Qe2 {[%clk 0:02:55]}  d6 {[%clk 0:03:02]} 8. Nbd2 {[%clk 0:02:56]}  Nf6 {[%clk 0:03:03]} 9. h3 {[%clk 0:02:56]}  O-O {[%clk 0:03:03]} 10. Nc4 {[%clk 0:02:56]}  Nd7 {[%clk 0:03:04]} 11. Bf4 {[%clk 0:02:56]}  b6 {[%clk 0:02:57]} 12. Rad1 {[%clk 0:02:55]}  Nc5 {[%clk 0:02:55]} 13. Bc2 {[%clk 0:02:47]}  Ba6 {[%clk 0:02:55]} 14. b4 {[%clk 0:02:47]}  Ne6 {[%clk 0:02:54]} 15. Bd2 {[%clk 0:02:43]}  Rc8 {[%clk 0:02:44]} 16. Bd3 {[%clk 0:02:43]}  Qc7 {[%clk 0:02:34]} 17. a4 {[%clk 0:02:34]}  Nxb4 {[%clk 0:02:28]} 18. cxb4 {[%clk 0:02:11]}  Bxc4 {[%clk 0:02:28]} 19. Rc1 {[%clk 0:02:10]}  Bxd3 {[%clk 0:02:28]} 20. Qxd3 {[%clk 0:02:11]}  Qd7 {[%clk 0:02:26]} 21. Qa6 {[%clk 0:02:09]}  Bb2 {[%clk 0:02:16]} 22. Rb1 {[%clk 0:02:01]}  Bg7 {[%clk 0:02:08]} 23. Rbc1 {[%clk 0:01:59]}  Nd4 {[%clk 0:02:01]} 24. Nxd4 {[%clk 0:01:55]}  Bxd4 {[%clk 0:02:02]} 25. Bh6 {[%clk 0:01:55]}  Rfe8 {[%clk 0:01:56]} 26. Rfd1 {[%clk 0:01:31]}  Bb2 {[%clk 0:01:53]} 27. Rb1 {[%clk 0:01:31]}  Bc3 {[%clk 0:01:48]} 28. Be3 {[%clk 0:01:30]}  Rc7 {[%clk 0:01:44]} 29. a5 {[%clk 0:01:22]}  b5 {[%clk 0:01:33]} 30. Rd5 {[%clk 0:01:16]}  Rb8 {[%clk 0:01:27]} 31. Rc1 {[%clk 0:01:06]}  Rbb7 {[%clk 0:01:25]} 32. Rd3 {[%clk 0:00:38]}  Bxb4 {[%clk 0:01:17]} 33. Rxc7 {[%clk 0:00:38]}  Qxc7 {[%clk 0:01:09]} 34. Rb3 {[%clk 0:00:38]}  Bxa5 {[%clk 0:01:02]} 35. Rxb5 {[%clk 0:00:33]}  Bb6 {[%clk 0:00:54]} 36. Rb1 {[%clk 0:00:29]}  Rb8 {[%clk 0:00:46]} 37. Rc1 {[%clk 0:00:21]}  Qb7 {[%clk 0:00:44]} 38. Qd3 {[%clk 0:00:14]}  Bxe3 {[%clk 0:00:44]} 39. Qxe3 {[%clk 0:00:15]}  a5 {[%clk 0:00:44]} 40. e5 {[%clk 0:00:15]}  dxe5 {[%clk 0:00:40]} 41. Qxe5 {[%clk 0:00:16]}  a4 {[%clk 0:00:15]} 42. Rc7 {[%clk 0:00:16]}  Qb1+ {[%clk 0:00:15]} 43. Kh2 {[%clk 0:00:16]}  e6 {[%clk 0:00:14]} 44. Ra7 {[%clk 0:00:14]}  Qb4 {[%clk 0:00:06]} 45. Rxa4 {[%clk 0:00:08]}  Qb7 {[%clk 0:00:03]} 46. Rc4 {[%clk 0:00:06]}  Rd8 {[%clk 0:00:03]} 47. Rc7 {[%clk 0:00:06]}  Qb6 {[%clk 0:00:03]} 48. Qf4 {[%clk 0:00:05]}  Rf8 {[%clk 0:00:02]} 49. h4 {[%clk 0:00:05]}  Qb8 {[%clk 0:00:02]} 50. h5 {[%clk 0:00:05]}  Qd8 {[%clk 0:00:02]} 51. h6 {[%clk 0:00:05]}  e5 {[%clk 0:00:02]} 52. Qxe5 {[%clk 0:00:04]}  Qh4+ {[%clk 0:00:02]} 53. Kg1 {[%clk 0:00:05]}  Qxh6 {[%clk 0:00:03]} 54. g3 {[%clk 0:00:05]}  Qg7 {[%clk 0:00:03]} 55. Qxg7+ {[%clk 0:00:04]}  Kxg7 {[%clk 0:00:04]} 56. Kg2 {[%clk 0:00:05]}  Re8 {[%clk 0:00:04]} 57. Rc6 {[%clk 0:00:06]}  Re6 {[%clk 0:00:05]} 58. Rc5 {[%clk 0:00:06]}  Rf6 {[%clk 0:00:06]} 59. Rc4 {[%clk 0:00:06]}  h5 {[%clk 0:00:06]} 60. Rb4 {[%clk 0:00:07]}  Rf5 {[%clk 0:00:07]} 61. Ra4 {[%clk 0:00:07]}  Kf6 {[%clk 0:00:08]} 62. Rb4 {[%clk 0:00:08]}  Re5 {[%clk 0:00:08]} 63. Ra4 {[%clk 0:00:08]}  Re6 {[%clk 0:00:08]} 64. Rb4 {[%clk 0:00:08]}  g5 {[%clk 0:00:09]} 65. Ra4 {[%clk 0:00:09]}  Kg6 {[%clk 0:00:09]} 66. Rb4 {[%clk 0:00:09]}  f6 {[%clk 0:00:10]} 67. Ra4 {[%clk 0:00:10]}  Kf5 {[%clk 0:00:11]} 68. Rb4 {[%clk 0:00:10]}  Re5 {[%clk 0:00:11]} 69. Ra4 {[%clk 0:00:11]}  Re4 {[%clk 0:00:12]} 70. Ra5+ {[%clk 0:00:11]}  Re5 {[%clk 0:00:13]} 71. Ra4 {[%clk 0:00:11]}  g4 {[%clk 0:00:13]} 72. Rb4 {[%clk 0:00:11]}  Kg5 {[%clk 0:00:13]} 73. Ra4 {[%clk 0:00:12]}  h4 {[%clk 0:00:14]} 74. gxh4+ {[%clk 0:00:12]}  Kxh4 {[%clk 0:00:15]} 75. Ra8 {[%clk 0:00:12]}  f5 {[%clk 0:00:15]} 76. Rh8+ {[%clk 0:00:12]}  Kg5 {[%clk 0:00:16]} 77. Kg3 {[%clk 0:00:10]}  f4+ {[%clk 0:00:16]} 78. Kg2 {[%clk 0:00:11]}  Re6 {[%clk 0:00:16]} 79. Rg8+ {[%clk 0:00:11]}  Rg6 {[%clk 0:00:17]} 80. Rf8 {[%clk 0:00:12]}  Rf6 {[%clk 0:00:13]} 81. Rg8+ {[%clk 0:00:12]}  Kf5 {[%clk 0:00:14]} 82. Rg7 {[%clk 0:00:12]}  Re6 {[%clk 0:00:14]} 83. Rg8 {[%clk 0:00:12]}  Ra6 {[%clk 0:00:12]} 84. Rf8+ {[%clk 0:00:12]}  Rf6 {[%clk 0:00:13]} 85. Rg8 {[%clk 0:00:13]}  Rg6 {[%clk 0:00:08]} 86. Rf8+ {[%clk 0:00:13]}  Ke4 {[%clk 0:00:08]} 87. Re8+ {[%clk 0:00:13]}  Kd5 {[%clk 0:00:08]} 88. Rf8 {[%clk 0:00:14]}  Ke5 {[%clk 0:00:09]} 89. Re8+ {[%clk 0:00:14]}  Kf5 {[%clk 0:00:09]} 90. Rf8+ {[%clk 0:00:15]}  Kg5 {[%clk 0:00:10]} 91. Rf7 {[%clk 0:00:14]}  Rf6 {[%clk 0:00:08]} 92. Rg7+ {[%clk 0:00:14]}  Kh5 {[%clk 0:00:08]} 93. Rg8 {[%clk 0:00:15]}  Kh4 {[%clk 0:00:08]} 94. Rh8+ {[%clk 0:00:15]}  Kg5 {[%clk 0:00:09]} 95. Rg8+ {[%clk 0:00:16]}  Rg6 {[%clk 0:00:09]} 96. Rf8 {[%clk 0:00:16]}  Re6 {[%clk 0:00:08]} 97. Rg8+ {[%clk 0:00:16]}  Kf5 {[%clk 0:00:09]} 98. Rf8+ {[%clk 0:00:17]}  Ke4 {[%clk 0:00:09]} 99. Rg8 {[%clk 0:00:18]}  Kf5 {[%clk 0:00:06]} 100. Rf8+ {[%clk 0:00:18]}  Kg5 {[%clk 0:00:06]} 101. Rg8+ {[%clk 0:00:18]} 1/2-1/2


[Site "https://www.chess.com"]

[Event "Titled Tuesday Blitz March 07 Early 2023"]
[White "Weetik, Vjacheslav"]
[Black "Lazavik, Denis"]
[WhiteFideId "4153472"]
[BlackFideId "13515110"]
[WhiteElo "2469"]
[BlackElo "2560"]
[Result "1-0"]
[Round "08"]
[TimeControl "180+2"]
[Date "2023.03.07"]
[WhiteClock "0:00:17"]
[BlackClock "0:00:04"]

1. e4 {[%clk 0:02:59]}  c5 {[%clk 0:02:59]} 2. Nf3 {[%clk 0:02:59]}  e6 {[%clk 0:03:00]} 3. d4 {[%clk 0:02:59]}  cxd4 {[%clk 0:03:00]} 4. Nxd4 {[%clk 0:03:00]}  Nc6 {[%clk 0:03:01]} 5. Nc3 {[%clk 0:02:59]}  Qc7 {[%clk 0:03:01]} 6. g3 {[%clk 0:02:50]}  a6 {[%clk 0:02:59]} 7. Bg2 {[%clk 0:02:46]}  Bc5 {[%clk 0:03:00]} 8. Nb3 {[%clk 0:02:30]}  Be7 {[%clk 0:02:59]} 9. O-O {[%clk 0:02:25]}  Nf6 {[%clk 0:02:59]} 10. Be3 {[%clk 0:02:16]}  O-O {[%clk 0:02:54]} 11. f4 {[%clk 0:02:10]}  d5 {[%clk 0:02:53]} 12. e5 {[%clk 0:02:05]}  Nd7 {[%clk 0:02:53]} 13. Kh1 {[%clk 0:01:53]}  Nb6 {[%clk 0:02:49]} 14. Ne2 {[%clk 0:01:30]}  Nc4 {[%clk 0:02:48]} 15. Bc1 {[%clk 0:01:30]}  b5 {[%clk 0:02:43]} 16. Nbd4 {[%clk 0:01:29]}  Bb7 {[%clk 0:02:35]} 17. b3 {[%clk 0:01:29]}  Nxd4 {[%clk 0:02:23]} 18. Nxd4 {[%clk 0:01:27]}  Na5 {[%clk 0:02:21]} 19. Bb2 {[%clk 0:01:23]}  Nc6 {[%clk 0:02:14]} 20. f5 {[%clk 0:01:14]}  Nxe5 {[%clk 0:01:30]} 21. fxe6 {[%clk 0:01:11]}  f6 {[%clk 0:00:23]} 22. Qh5 {[%clk 0:01:04]}  g6 {[%clk 0:00:21]} 23. Qh6 {[%clk 0:01:01]}  Ng4 {[%clk 0:00:20]} 24. Qd2 {[%clk 0:00:57]}  f5 {[%clk 0:00:17]} 25. Rae1 {[%clk 0:00:56]}  Rae8 {[%clk 0:00:16]} 26. h3 {[%clk 0:00:49]}  Qxg3 {[%clk 0:00:07]} 27. hxg4 {[%clk 0:00:39]}  Qh4+ {[%clk 0:00:07]} 28. Kg1 {[%clk 0:00:39]}  fxg4 {[%clk 0:00:08]} 29. Rf7 {[%clk 0:00:21]}  Rxf7 {[%clk 0:00:05]} 30. exf7+ {[%clk 0:00:22]}  Kxf7 {[%clk 0:00:06]} 31. Rf1+ {[%clk 0:00:19]}  Kg8 {[%clk 0:00:06]} 32. Qe3 {[%clk 0:00:17]}  g3 {[%clk 0:00:04]} 33. Qe6+ {[%clk 0:00:17]} 1-0


[Site "https://www.chess.com"]

[Event "Titled Tuesday Blitz March 07 Early 2023"]
[White "Shimanov, Aleksandr"]
[Black "Wagner, Dennis"]
[WhiteFideId "4198603"]
[BlackFideId "24650684"]
[WhiteElo "2631"]
[BlackElo "2470"]
[Result "1-0"]
[Round "08"]
[TimeControl "180+2"]
[Date "2023.03.07"]
[WhiteClock "0:00:22"]
[BlackClock "0:00:01"]

1. e4 {[%clk 0:02:56]}  e5 {[%clk 0:02:59]} 2. Nf3 {[%clk 0:02:56]}  Nc6 {[%clk 0:03:00]} 3. Nc3 {[%clk 0:02:56]}  Nf6 {[%clk 0:03:00]} 4. h3 {[%clk 0:02:56]}  Bb4 {[%clk 0:02:57]} 5. Nd5 {[%clk 0:02:56]}  Nxd5 {[%clk 0:02:56]} 6. exd5 {[%clk 0:02:57]}  Nd4 {[%clk 0:02:56]} 7. Nxd4 {[%clk 0:02:46]}  exd4 {[%clk 0:02:55]} 8. Qf3 {[%clk 0:02:17]}  O-O {[%clk 0:02:49]} 9. Bd3 {[%clk 0:02:10]}  Re8+ {[%clk 0:02:46]} 10. Kd1 {[%clk 0:02:10]}  b6 {[%clk 0:02:11]} 11. c3 {[%clk 0:02:09]}  Bd6 {[%clk 0:02:04]} 12. Qh5 {[%clk 0:01:58]}  g6 {[%clk 0:02:02]} 13. Qf3 {[%clk 0:01:58]}  Bb7 {[%clk 0:01:24]} 14. h4 {[%clk 0:01:57]}  Re5 {[%clk 0:01:00]} 15. c4 {[%clk 0:01:45]}  c6 {[%clk 0:00:39]} 16. h5 {[%clk 0:01:42]}  Qe7 {[%clk 0:00:30]} 17. dxc6 {[%clk 0:01:30]}  Bxc6 {[%clk 0:00:28]} 18. Qg4 {[%clk 0:01:24]}  Rg5 {[%clk 0:00:25]} 19. Qxd4 {[%clk 0:01:06]}  Bxg2 {[%clk 0:00:20]} 20. Re1 {[%clk 0:00:59]}  Bf3+ {[%clk 0:00:19]} 21. Kc2 {[%clk 0:01:00]}  Qxe1 {[%clk 0:00:14]} 22. Qxd6 {[%clk 0:01:00]}  Bd1+ {[%clk 0:00:08]} 23. Kc3 {[%clk 0:01:00]}  Rxh5 {[%clk 0:00:04]} 24. f4 {[%clk 0:00:59]}  Qe6 {[%clk 0:00:02]} 25. Qd4 {[%clk 0:00:58]}  Qc6 {[%clk 0:00:01]} 26. b4 {[%clk 0:00:58]}  Qa4 {[%clk 0:00:01]} 27. Bb2 {[%clk 0:00:58]}  Rc8 {[%clk 0:00:01]} 28. Qe3 {[%clk 0:00:22]} 1-0


[Site "https://www.chess.com"]

[Event "Titled Tuesday Blitz March 07 Early 2023"]
[White "Klabis, Rokas"]
[Black "Durarbayli, Vasif"]
[WhiteFideId "12805246"]
[BlackFideId "13402935"]
[WhiteElo "2288"]
[BlackElo "2543"]
[Result "0-1"]
[Round "08"]
[TimeControl "180+2"]
[Date "2023.03.07"]
[WhiteClock "0:00:12"]
[BlackClock "0:00:03"]

1. e4 {[%clk 0:03:00]}  c5 {[%clk 0:02:59]} 2. Nf3 {[%clk 0:03:00]}  d6 {[%clk 0:03:00]} 3. d4 {[%clk 0:03:01]}  cxd4 {[%clk 0:03:01]} 4. Nxd4 {[%clk 0:03:01]}  Nf6 {[%clk 0:03:01]} 5. Nc3 {[%clk 0:03:01]}  Nc6 {[%clk 0:03:02]} 6. h3 {[%clk 0:03:01]}  e5 {[%clk 0:02:56]} 7. Nde2 {[%clk 0:03:01]}  Be6 {[%clk 0:02:50]} 8. g4 {[%clk 0:03:01]}  d5 {[%clk 0:02:49]} 9. exd5 {[%clk 0:02:12]}  Nxd5 {[%clk 0:02:50]} 10. Bg2 {[%clk 0:02:12]}  Nxc3 {[%clk 0:02:34]} 11. Qxd8+ {[%clk 0:02:12]}  Rxd8 {[%clk 0:02:35]} 12. Nxc3 {[%clk 0:02:04]}  h5 {[%clk 0:02:22]} 13. g5 {[%clk 0:02:01]}  Nd4 {[%clk 0:02:13]} 14. Be4 {[%clk 0:01:49]}  Bb4 {[%clk 0:01:31]} 15. Bd2 {[%clk 0:01:45]}  O-O {[%clk 0:01:11]} 16. a3 {[%clk 0:01:40]}  Bxc3 {[%clk 0:00:47]} 17. Bxc3 {[%clk 0:01:39]}  Bd5 {[%clk 0:00:46]} 18. Bxd5 {[%clk 0:01:25]}  Nxc2+ {[%clk 0:00:45]} 19. Ke2 {[%clk 0:01:23]}  Nxa1 {[%clk 0:00:42]} 20. Ba2 {[%clk 0:01:09]}  Nc2 {[%clk 0:00:40]} 21. g6 {[%clk 0:01:10]}  Nd4+ {[%clk 0:00:37]} 22. Kf1 {[%clk 0:01:01]}  Ne6 {[%clk 0:00:32]} 23. gxf7+ {[%clk 0:00:54]}  Kxf7 {[%clk 0:00:33]} 24. Kg2 {[%clk 0:00:54]}  Kf6 {[%clk 0:00:30]} 25. Re1 {[%clk 0:00:53]}  Nf4+ {[%clk 0:00:29]} 26. Kh2 {[%clk 0:00:51]}  Rfe8 {[%clk 0:00:27]} 27. Re4 {[%clk 0:00:49]}  g5 {[%clk 0:00:27]} 28. h4 {[%clk 0:00:50]}  Rd3 {[%clk 0:00:18]} 29. hxg5+ {[%clk 0:00:49]}  Kf5 {[%clk 0:00:11]} 30. Rb4 {[%clk 0:00:18]}  Rh3+ {[%clk 0:00:11]} 31. Kg1 {[%clk 0:00:18]}  Rd8 {[%clk 0:00:12]} 32. Bb1+ {[%clk 0:00:18]}  Kxg5 {[%clk 0:00:12]} 33. Bc2 {[%clk 0:00:17]}  b6 {[%clk 0:00:05]} 34. Bxe5 {[%clk 0:00:18]}  Rf3 {[%clk 0:00:04]} 35. Rb5 {[%clk 0:00:16]}  Kh6 {[%clk 0:00:03]} 36. Kf1 {[%clk 0:00:15]}  Rd2 {[%clk 0:00:03]} 37. Bb3 {[%clk 0:00:12]}  Rfxf2+ {[%clk 0:00:03]} 38. Ke1 {[%clk 0:00:12]}  Nd3# {[%clk 0:00:03]} 0-1


[Site "https://www.chess.com"]

[Event "Titled Tuesday Blitz March 07 Early 2023"]
[White "Narayanan.S.L"]
[Black "Aldokhin, Ivan"]
[WhiteFideId "5058422"]
[BlackFideId "24115720"]
[WhiteElo "2547"]
[BlackElo "2322"]
[Result "1-0"]
[Round "08"]
[TimeControl "180+2"]
[Date "2023.03.07"]
[WhiteClock "0:01:54"]
[BlackClock "0:00:02"]

1. e4 {[%clk 0:03:00]}  c5 {[%clk 0:02:59]} 2. c3 {[%clk 0:03:00]}  d5 {[%clk 0:02:59]} 3. exd5 {[%clk 0:03:00]}  Qxd5 {[%clk 0:03:00]} 4. Na3 {[%clk 0:03:01]}  Nf6 {[%clk 0:02:59]} 5. Nf3 {[%clk 0:02:59]}  e6 {[%clk 0:02:57]} 6. d4 {[%clk 0:02:58]}  Nc6 {[%clk 0:02:55]} 7. Be3 {[%clk 0:02:57]}  cxd4 {[%clk 0:02:46]} 8. Nb5 {[%clk 0:02:57]}  Qd8 {[%clk 0:02:46]} 9. Nbxd4 {[%clk 0:02:57]}  Bd7 {[%clk 0:02:43]} 10. Bd3 {[%clk 0:02:55]}  Nd5 {[%clk 0:02:24]} 11. Bd2 {[%clk 0:02:38]}  Bc5 {[%clk 0:02:17]} 12. Nb3 {[%clk 0:02:35]}  Be7 {[%clk 0:02:12]} 13. Qe2 {[%clk 0:02:35]}  O-O {[%clk 0:02:07]} 14. h4 {[%clk 0:02:34]}  Qc7 {[%clk 0:01:32]} 15. O-O-O {[%clk 0:02:23]}  Ncb4 {[%clk 0:01:29]} 16. Bb1 {[%clk 0:02:22]}  a5 {[%clk 0:01:05]} 17. Ng5 {[%clk 0:02:18]}  h6 {[%clk 0:00:58]} 18. a3 {[%clk 0:02:17]}  a4 {[%clk 0:00:56]} 19. Nd4 {[%clk 0:02:17]}  Nxc3 {[%clk 0:00:43]} 20. Bxc3 {[%clk 0:02:08]}  Nd5 {[%clk 0:00:43]} 21. Qd3 {[%clk 0:02:08]}  g6 {[%clk 0:00:34]} 22. Ngxe6 {[%clk 0:02:06]}  Qd6 {[%clk 0:00:25]} 23. Nxf8 {[%clk 0:02:06]}  Nxc3 {[%clk 0:00:17]} 24. Nxg6 {[%clk 0:01:57]}  fxg6 {[%clk 0:00:15]} 25. Qxg6+ {[%clk 0:01:56]}  Qxg6 {[%clk 0:00:15]} 26. Bxg6 {[%clk 0:01:57]}  Nxd1 {[%clk 0:00:15]} 27. Rxd1 {[%clk 0:01:58]}  Bxh4 {[%clk 0:00:14]} 28. g3 {[%clk 0:01:55]}  Bf6 {[%clk 0:00:13]} 29. Nf5 {[%clk 0:01:52]}  Rc8+ {[%clk 0:00:10]} 30. Kb1 {[%clk 0:01:52]}  Bxf5+ {[%clk 0:00:03]} 31. Bxf5 {[%clk 0:01:52]}  Rc5 {[%clk 0:00:04]} 32. Be6+ {[%clk 0:01:44]}  Kg7 {[%clk 0:00:04]} 33. Rd5 {[%clk 0:01:44]}  Rxd5 {[%clk 0:00:02]} 34. Bxd5 {[%clk 0:01:45]}  b6 {[%clk 0:00:02]} 35. Bc6 {[%clk 0:01:46]}  Bd4 {[%clk 0:00:02]} 36. f3 {[%clk 0:01:47]}  Be5 {[%clk 0:00:02]} 37. g4 {[%clk 0:01:47]}  Kf6 {[%clk 0:00:02]} 38. Bxa4 {[%clk 0:01:47]}  Kg5 {[%clk 0:00:02]} 39. Kc2 {[%clk 0:01:48]}  h5 {[%clk 0:00:02]} 40. gxh5 {[%clk 0:01:47]}  Kxh5 {[%clk 0:00:03]} 41. Bc6 {[%clk 0:01:48]}  Kg5 {[%clk 0:00:03]} 42. b4 {[%clk 0:01:48]}  Kf6 {[%clk 0:00:03]} 43. Kb3 {[%clk 0:01:49]}  Ke7 {[%clk 0:00:04]} 44. Kc4 {[%clk 0:01:49]}  Kd6 {[%clk 0:00:04]} 45. Be4 {[%clk 0:01:49]}  Bf4 {[%clk 0:00:05]} 46. a4 {[%clk 0:01:49]}  Bd2 {[%clk 0:00:06]} 47. Kb5 {[%clk 0:01:49]}  Kc7 {[%clk 0:00:06]} 48. a5 {[%clk 0:01:48]}  bxa5 {[%clk 0:00:05]} 49. bxa5 {[%clk 0:01:49]}  Kb8 {[%clk 0:00:05]} 50. a6 {[%clk 0:01:50]}  Be3 {[%clk 0:00:05]} 51. Bb7 {[%clk 0:01:50]}  Kc7 {[%clk 0:00:05]} 52. Kc4 {[%clk 0:01:51]}  Kd6 {[%clk 0:00:06]} 53. Kd3 {[%clk 0:01:52]}  Ba7 {[%clk 0:00:05]} 54. Ke4 {[%clk 0:01:53]}  Ke6 {[%clk 0:00:06]} 55. f4 {[%clk 0:01:53]}  Bb8 {[%clk 0:00:05]} 56. f5+ {[%clk 0:01:54]}  Kd6 {[%clk 0:00:05]} 57. Bd5 {[%clk 0:01:54]}  Ke7 {[%clk 0:00:05]} 58. Be6 {[%clk 0:01:54]}  Kd6 {[%clk 0:00:04]} 59. Kf4 {[%clk 0:01:53]}  Ke7+ {[%clk 0:00:04]} 60. Kg5 {[%clk 0:01:54]}  Ba7 {[%clk 0:00:02]} 61. Kg6 {[%clk 0:01:54]}  Bd4 {[%clk 0:00:02]} 62. Bb3 {[%clk 0:01:54]}  Bc5 {[%clk 0:00:01]} 63. f6+ {[%clk 0:01:54]}  Kf8 {[%clk 0:00:02]} 64. f7 {[%clk 0:01:54]} 1-0


[Site "https://www.chess.com"]

[Event "Titled Tuesday Blitz March 07 Early 2023"]
[White "Karthik Rajaa"]
[Black "Ibarra Jerez, Jose Carlos"]
[WhiteFideId "25035215"]
[BlackFideId "2226332"]
[WhiteElo "2215"]
[BlackElo "2638"]
[Result "0-1"]
[Round "08"]
[TimeControl "180+2"]
[Date "2023.03.07"]
[WhiteClock "0:00:06"]
[BlackClock "0:00:03"]

1. Nf3 {[%clk 0:03:00]}  d6 {[%clk 0:02:59]} 2. d4 {[%clk 0:03:00]}  Nf6 {[%clk 0:02:59]} 3. Nc3 {[%clk 0:02:59]}  Bf5 {[%clk 0:02:59]} 4. g3 {[%clk 0:02:57]}  Ne4 {[%clk 0:02:57]} 5. Nb1 {[%clk 0:02:54]}  Nf6 {[%clk 0:02:56]} 6. Bg2 {[%clk 0:02:54]}  g6 {[%clk 0:02:56]} 7. O-O {[%clk 0:02:53]}  Bg7 {[%clk 0:02:56]} 8. Nc3 {[%clk 0:02:49]}  Ne4 {[%clk 0:02:56]} 9. Nb1 {[%clk 0:02:48]}  Nf6 {[%clk 0:02:56]} 10. Nc3 {[%clk 0:02:48]}  O-O {[%clk 0:02:52]} 11. Re1 {[%clk 0:02:41]}  Ne4 {[%clk 0:02:50]} 12. Nd5 {[%clk 0:02:41]}  c6 {[%clk 0:02:49]} 13. Ne3 {[%clk 0:02:41]}  Bd7 {[%clk 0:02:50]} 14. Nf1 {[%clk 0:02:32]}  f5 {[%clk 0:02:44]} 15. c3 {[%clk 0:02:23]}  c5 {[%clk 0:02:43]} 16. dxc5 {[%clk 0:02:20]}  Nxc5 {[%clk 0:02:42]} 17. Ne3 {[%clk 0:02:10]}  Kh8 {[%clk 0:02:38]} 18. Nd4 {[%clk 0:02:08]}  Nc6 {[%clk 0:02:36]} 19. b3 {[%clk 0:01:48]}  Rc8 {[%clk 0:02:19]} 20. Bb2 {[%clk 0:01:46]}  f4 {[%clk 0:02:19]} 21. Nd5 {[%clk 0:01:39]}  fxg3 {[%clk 0:02:18]} 22. hxg3 {[%clk 0:01:39]}  e6 {[%clk 0:02:13]} 23. Nf4 {[%clk 0:01:28]}  e5 {[%clk 0:01:36]} 24. Nxc6 {[%clk 0:01:26]}  bxc6 {[%clk 0:01:36]} 25. Qxd6 {[%clk 0:00:52]}  Nb7 {[%clk 0:01:35]} 26. Nxg6+ {[%clk 0:00:52]}  hxg6 {[%clk 0:01:35]} 27. Qxg6 {[%clk 0:00:52]}  Qf6 {[%clk 0:01:13]} 28. Qh5+ {[%clk 0:00:52]}  Kg8 {[%clk 0:01:12]} 29. Rf1 {[%clk 0:00:39]}  Be8 {[%clk 0:01:06]} 30. Qg4 {[%clk 0:00:37]}  Rd8 {[%clk 0:01:07]} 31. c4 {[%clk 0:00:28]}  Bd7 {[%clk 0:00:43]} 32. Qh5 {[%clk 0:00:21]}  Qe7 {[%clk 0:00:38]} 33. Rad1 {[%clk 0:00:19]}  Be8 {[%clk 0:00:36]} 34. Qg4 {[%clk 0:00:18]}  Rxd1 {[%clk 0:00:37]} 35. Rxd1 {[%clk 0:00:18]}  Qf7 {[%clk 0:00:35]} 36. Rf1 {[%clk 0:00:18]}  Bd7 {[%clk 0:00:33]} 37. Qg5 {[%clk 0:00:16]}  Nc5 {[%clk 0:00:29]} 38. Bxe5 {[%clk 0:00:15]}  Ne6 {[%clk 0:00:30]} 39. Qe3 {[%clk 0:00:15]}  Bxe5 {[%clk 0:00:18]} 40. Qxe5 {[%clk 0:00:16]}  Qg7 {[%clk 0:00:15]} 41. Qd6 {[%clk 0:00:15]}  Nd4 {[%clk 0:00:16]} 42. Re1 {[%clk 0:00:14]}  Bg4 {[%clk 0:00:15]} 43. f3 {[%clk 0:00:14]}  Bf5 {[%clk 0:00:15]} 44. e4 {[%clk 0:00:13]}  Bc8 {[%clk 0:00:14]} 45. Kf2 {[%clk 0:00:09]}  Ne6 {[%clk 0:00:09]} 46. Rh1 {[%clk 0:00:07]}  Rd8 {[%clk 0:00:09]} 47. Qa3 {[%clk 0:00:06]}  Qd4+ {[%clk 0:00:09]} 48. Kf1 {[%clk 0:00:05]}  Qd1+ {[%clk 0:00:09]} 49. Kf2 {[%clk 0:00:06]}  Rd2+ {[%clk 0:00:10]} 50. Ke3 {[%clk 0:00:06]}  Qe2# {[%clk 0:00:03]} 0-1


[Site "https://www.chess.com"]

[Event "Titled Tuesday Blitz March 07 Early 2023"]
[White "Yeletsky, Ivan"]
[Black "Csonka, Balazs"]
[WhiteFideId "24180327"]
[BlackFideId "742910"]
[WhiteElo "2414"]
[BlackElo "2404"]
[Result "0-1"]
[Round "08"]
[TimeControl "180+2"]
[Date "2023.03.07"]
[WhiteClock "0:00:03"]
[BlackClock "0:00:04"]

1. e4 {[%clk 0:03:00]}  c6 {[%clk 0:02:58]} 2. f3 {[%clk 0:02:57]}  e5 {[%clk 0:02:50]} 3. d4 {[%clk 0:02:55]}  exd4 {[%clk 0:02:36]} 4. Qxd4 {[%clk 0:02:54]}  d5 {[%clk 0:02:36]} 5. Nc3 {[%clk 0:02:52]}  Nf6 {[%clk 0:02:32]} 6. Bf4 {[%clk 0:02:42]}  Nbd7 {[%clk 0:01:58]} 7. O-O-O {[%clk 0:02:31]}  Bc5 {[%clk 0:01:57]} 8. Qd2 {[%clk 0:02:31]}  O-O {[%clk 0:01:56]} 9. g4 {[%clk 0:01:57]}  dxe4 {[%clk 0:01:32]} 10. g5 {[%clk 0:01:44]}  Nh5 {[%clk 0:01:23]} 11. fxe4 {[%clk 0:01:07]}  Nxf4 {[%clk 0:01:17]} 12. Qxf4 {[%clk 0:01:07]}  Qb6 {[%clk 0:00:44]} 13. Qg3 {[%clk 0:00:56]}  Bd4 {[%clk 0:00:40]} 14. Bc4 {[%clk 0:00:27]}  Be5 {[%clk 0:00:35]} 15. Qf3 {[%clk 0:00:24]}  Qa5 {[%clk 0:00:19]} 16. Nge2 {[%clk 0:00:21]}  b5 {[%clk 0:00:19]} 17. Bb3 {[%clk 0:00:18]}  Nc5 {[%clk 0:00:19]} 18. h4 {[%clk 0:00:06]}  b4 {[%clk 0:00:13]} 19. Nb1 {[%clk 0:00:07]}  Nxb3+ {[%clk 0:00:12]} 20. axb3 {[%clk 0:00:06]}  Be6 {[%clk 0:00:12]} 21. Nd4 {[%clk 0:00:05]}  Rad8 {[%clk 0:00:08]} 22. Nxc6 {[%clk 0:00:03]}  Rxd1+ {[%clk 0:00:04]} 23. Rxd1 {[%clk 0:00:04]}  Qc7 {[%clk 0:00:04]} 24. Nxe5 {[%clk 0:00:04]}  Qxe5 {[%clk 0:00:05]} 25. Nd2 {[%clk 0:00:04]}  a5 {[%clk 0:00:05]} 26. Qe3 {[%clk 0:00:04]}  g6 {[%clk 0:00:04]} 27. Nf3 {[%clk 0:00:04]}  Qg3 {[%clk 0:00:04]} 28. Re1 {[%clk 0:00:03]}  Rd8 {[%clk 0:00:04]} 29. Kb1 {[%clk 0:00:02]}  Qg2 {[%clk 0:00:03]} 30. Ka2 {[%clk 0:00:03]}  Qg3 {[%clk 0:00:04]} 0-1


[Site "https://www.chess.com"]